Workbook

Sheet ВИС2017
E1: ПРАЙС-ЛИСТ REHAU ВИС EA 2017
A2: НДС | B2: 1.18
E3: ( с заменами от 24.04.2017 )
E5: 0 | F5: Основная скидка / Grundrabatt:
E7: 0 | F7: Скидка за оснащение склада или объектная скидка / Lagererstausstattungsrabatt bzw.Objektrabatt::
E9: 0 | F9: Скидка за предоплату / Skonto:
E11: 0 | F11: Надбавка / Logistikkostenaufschlag:
A13: N = Новый артикул V = Изменен вариант P = изменение цены D = Выводится из программы поставок
B14: Программа | C14: Складская программа | D14: Прежний материал | E14: Актуальный материал | F14: Наименование | G14: Кол-во | H14: Ед. изм. | I14: Единица поставки | J14: Цена брутто ЕВРО без НДС | K14: Цена брутто ЕВРО с НДС | L14: Сумма брутто ЕВРО с НДС | M14: Цена нетто ЕВРО без НДС | N14: Сумма нетто ЕВРО без НДС | O14: Цена нетто ЕВРО с НДС | P14: Сумма нетто ЕВРО с НДС
B16: RAUTITAN | F16: 1.1.1. Трубы и комплектующие на водоснабжение и отопление
B17: RAUTITAN | C17: x | E17: 11301211100 | F17: Универсальн.труба RAUTITAN stabil 16,2х2,6 мм, бухта 100 м | H17: м | I17: 100 | J17: 2.45 | K17: =J17*$B$2 -> 2.891 | L17: =K17*G17 -> 0 | M17: =J17*(1-$E$5-$E$7)*(1-$E$9)*(1+$E$11) -> 2.45 | N17: =M17*G17 -> 0 | O17: =ROUND((M17*$B$2),2) -> 2.89 | P17: =O17*G17 -> 0
B18: RAUTITAN | C18: x | E18: 11301311100 | F18: Универсальн.труба RAUTITAN stabil 20х2,9 мм, бухта 100 м | H18: м | I18: 100 | J18: 3.49 | K18: =J18*$B$2 -> 4.1182 | L18: =K18*G18 -> 0 | M18: =J18*(1-$E$5-$E$7)*(1-$E$9)*(1+$E$11) -> 3.49 | N18: =M18*G18 -> 0 | O18: =ROUND((M18*$B$2),2) -> 4.12 | P18: =O18*G18 -> 0
B19: RAUTITAN | C19: x | E19: 11301411050 | F19: Универсальн.труба RAUTITAN stabil 25х3,7 мм, бухта 50 м | H19: м | I19: 50 | J19: 6.29 | K19: =J19*$B$2 -> 7.4222 | L19: =K19*G19 -> 0 | M19: =J19*(1-$E$5-$E$7)*(1-$E$9)*(1+$E$11) -> 6.29 | N19: =M19*G19 -> 0 | O19: =ROUND((M19*$B$2),2) -> 7.42 | P19: =O19*G19 -> 0
A20: N | B20: RAUTITAN | E20: 11301511025 | F20: Универсальн.труба RAUTITAN stabil 32х4,7 мм, бухта 25 м | H20: м | I20: 25 | J20: 7.42 | K20: =J20*$B$2 -> 8.7556 | L20: =K20*G20 -> 0 | M20: =J20*(1-$E$5-$E$7)*(1-$E$9)*(1+$E$11) -> 7.42 | N20: =M20*G20 -> 0 | O20: =ROUND((M20*$B$2),2) -> 8.76 | P20: =O20*G20 -> 0
B21: RAUTITAN
B22: RAUTITAN | E22: 11300711005 | F22: Универсальн.труба RAUTITAN stabil 16,2х2,6 мм, прям.отрезки 5м | H22: м | I22: 100 | J22: 2.76 | K22: =J22*$B$2 -> 3.2568 | L22: =K22*G22 -> 0 | M22: =J22*(1-$E$5-$E$7)*(1-$E$9)*(1+$E$11) -> 2.76 | N22: =M22*G22 -> 0 | O22: =ROUND((M22*$B$2),2) -> 3.26 | P22: =O22*G22 -> 0
B23: RAUTITAN | E23: 11300811005 | F23: Универсальн.труба RAUTITAN stabil 20х2,9 мм, прям.отрезки 5м | H23: м | I23: 50 | J23: 3.8 | K23: =J23*$B$2 -> 4.484 | L23: =K23*G23 -> 0 | M23: =J23*(1-$E$5-$E$7)*(1-$E$9)*(1+$E$11) -> 3.8 | N23: =M23*G23 -> 0 | O23: =ROUND((M23*$B$2),2) -> 4.48 | P23: =O23*G23 -> 0
B24: RAUTITAN | E24: 11300911005 | F24: Универсальн.труба RAUTITAN stabil 25х3,7 мм, прям.отрезки 5м | H24: м | I24: 40 | J24: 6.73 | K24: =J24*$B$2 -> 7.9414 | L24: =K24*G24 -> 0 | M24: =J24*(1-$E$5-$E$7)*(1-$E$9)*(1+$E$11) -> 6.73 | N24: =M24*G24 -> 0 | O24: =ROUND((M24*$B$2),2) -> 7.94 | P24: =O24*G24 -> 0
B25: RAUTITAN | C25: x | E25: 11301011005 | F25: Универсальн.труба RAUTITAN stabil 32х4,7 мм, прям.отрезки 5м | H25: м | I25: 25 | J25: 7.91 | K25: =J25*$B$2 -> 9.3338 | L25: =K25*G25 -> 0 | M25: =J25*(1-$E$5-$E$7)*(1-$E$9)*(1+$E$11) -> 7.91 | N25: =M25*G25 -> 0 | O25: =ROUND((M25*$B$2),2) -> 9.33 | P25: =O25*G25 -> 0
B26: RAUTITAN | C26: x | E26: 11301111005 | F26: Универсальн.труба RAUTITAN stabil 40х6,0 мм, прям.отрезки 5м | H26: м | I26: 15 | J26: 19.67 | K26: =J26*$B$2 -> 23.2106 | L26: =K26*G26 -> 0 | M26: =J26*(1-$E$5-$E$7)*(1-$E$9)*(1+$E$11) -> 19.67 | N26: =M26*G26 -> 0 | O26: =ROUND((M26*$B$2),2) -> 23.21 | P26: =O26*G26 -> 0
B27: RAUTITAN
B28: RAUTITAN | C28: под заказ | E28: 11308301025 | F28: Унив.труба RAUTITAN stabil 16,2х2,6, прямоуг. изол. 9 мм, бухта 25 м | H28: м | I28: 25 | J28: 5.45 | K28: =J28*$B$2 -> 6.431 | L28: =K28*G28 -> 0 | M28: =J28*(1-$E$5-$E$7)*(1-$E$9)*(1+$E$11) -> 5.45 | N28: =M28*G28 -> 0 | O28: =ROUND((M28*$B$2),2) -> 6.43 | P28: =O28*G28 -> 0
B29: RAUTITAN | C29: под заказ | E29: 11308401025 | F29: Унив.труба RAUTITAN stabil 20х2,9, прямоуг. изол. 9 мм, бухта 25 м | H29: м | I29: 25 | J29: 6.89 | K29: =J29*$B$2 -> 8.1302 | L29: =K29*G29 -> 0 | M29: =J29*(1-$E$5-$E$7)*(1-$E$9)*(1+$E$11) -> 6.89 | N29: =M29*G29 -> 0 | O29: =ROUND((M29*$B$2),2) -> 8.13 | P29: =O29*G29 -> 0
B30: RAUTITAN | C30: под заказ | E30: 11308501025 | F30: Унив.труба RAUTITAN stabil 16,2х2,6, прямоуг., изол.26 мм, бухта 25 м | H30: м | I30: 25 | J30: 8.08 | K30: =J30*$B$2 -> 9.5344 | L30: =K30*G30 -> 0 | M30: =J30*(1-$E$5-$E$7)*(1-$E$9)*(1+$E$11) -> 8.08 | N30: =M30*G30 -> 0 | O30: =ROUND((M30*$B$2),2) -> 9.53 | P30: =O30*G30 -> 0
B31: RAUTITAN | C31: под заказ | E31: 11308601025 | F31: Унив.труба RAUTITAN stabil 20х2,9, прямоуг., изол. 26 мм, бухта 25 м | H31: м | I31: 25 | J31: 9.18 | K31: =J31*$B$2 -> 10.8324 | L31: =K31*G31 -> 0 | M31: =J31*(1-$E$5-$E$7)*(1-$E$9)*(1+$E$11) -> 9.18 | N31: =M31*G31 -> 0 | O31: =ROUND((M31*$B$2),2) -> 10.83 | P31: =O31*G31 -> 0
B32: RAUTITAN
B33: RAUTITAN | C33: под заказ | E33: 11302411050 | F33: Унив.труба RAUTITAN stabil 16,2х2,6, кругл., изол. 4 мм, бухта 50 м | H33: м | I33: 50 | J33: 3.71 | K33: =J33*$B$2 -> 4.3778 | L33: =K33*G33 -> 0 | M33: =J33*(1-$E$5-$E$7)*(1-$E$9)*(1+$E$11) -> 3.71 | N33: =M33*G33 -> 0 | O33: =ROUND((M33*$B$2),2) -> 4.38 | P33: =O33*G33 -> 0
B34: RAUTITAN | C34: под заказ | E34: 11302711050 | F34: Унив.труба RAUTITAN stabil 20х2,9, кругл., изол. 4 мм, бухта 50 м | H34: м | I34: 50 | J34: 5.03 | K34: 5.9354 | L34: 0 | M34: 5.03 | N34: 0 | O34: 5.94 | P34: 0
B35: RAUTITAN | C35: под заказ | E35: 11314951025 | F35: Унив.труба RAUTITAN stabil 25x3,7, кругл., изол. 4 мм, бухта 25 м. | H35: м | I35: 25 | J35: 7.06 | K35: 8.3308 | L35: 0 | M35: 7.06 | N35: 0 | O35: 8.33 | P35: 0
B36: RAUTITAN | C36: под заказ | E36: 11302511050 | F36: Унив.труба RAUTITAN stabil 16,2х2,6, кругл., изол. 9 мм, бухта 50 м | H36: м | I36: 50 | J36: 4.25 | K36: 5.015 | L36: 0 | M36: 4.25 | N36: 0 | O36: 5.02 | P36: 0
B37: RAUTITAN | C37: под заказ | E37: 11302811050 | F37: Унив.труба RAUTITAN stabil 20х2,9, кругл., изол. 9 мм, бухта 50 м | H37: м | I37: 50 | J37: 5.63 | K37: 6.6434 | L37: 0 | M37: 5.63 | N37: 0 | O37: 6.64 | P37: 0
B38: RAUTITAN | C38: под заказ | E38: 11314971025 | F38: Унив.труба RAUTITAN stabil 25x3,7, кругл., изол. 9 мм, бухта 25 м. | H38: м | I38: 25 | J38: 7.4 | K38: 8.732 | L38: 0 | M38: 7.4 | N38: 0 | O38: 8.73 | P38: 0
B39: RAUTITAN | C39: под заказ | E39: 11314981025 | F39: Унив.труба RAUTITAN stabil 16x2,6, кругл., изол. 13 мм, бухта 25 м. | H39: м | I39: 25 | J39: 4.95 | K39: 5.841 | L39: 0 | M39: 4.95 | N39: 0 | O39: 5.84 | P39: 0
B40: RAUTITAN | C40: под заказ | E40: 11314991025 | F40: Унив.труба RAUTITAN stabil 20x2,9, кругл., изол. 13 мм, бухта 25 м. | H40: м | I40: 25 | J40: 5.78 | K40: 6.8204 | L40: 0 | M40: 5.78 | N40: 0 | O40: 6.82 | P40: 0
B41: RAUTITAN | C41: под заказ | E41: 11315051025 | F41: Унив.труба RAUTITAN stabil 25x3,7, кругл., изол. 13 мм, бухта 25 м. | H41: м | I41: 25 | J41: 7.88 | K41: 9.2984 | L41: 0 | M41: 7.88 | N41: 0 | O41: 9.3 | P41: 0
B42: RAUTITAN
B43: RAUTITAN | C43: под заказ | E43: 11304911050 | F43: Унив.труба RAUTITAN stаbil 16,2х2,6мм в гофротрубе, бухта 50м | H43: м | I43: 50 | J43: 3.17 | K43: =J43*$B$2 -> 3.7406 | L43: =K43*G43 -> 0 | M43: =J43*(1-$E$5-$E$7)*(1-$E$9)*(1+$E$11) -> 3.17 | N43: =M43*G43 -> 0 | O43: =ROUND((M43*$B$2),2) -> 3.74 | P43: =O43*G43 -> 0
B44: RAUTITAN | C44: под заказ | E44: 11305011050 | F44: Унив.труба RAUTITAN stabil 20х2,9мм в гофротрубе, бухта 50 м | H44: м | I44: 50 | J44: 4.33 | K44: =J44*$B$2 -> 5.1094 | L44: =K44*G44 -> 0 | M44: =J44*(1-$E$5-$E$7)*(1-$E$9)*(1+$E$11) -> 4.33 | N44: =M44*G44 -> 0 | O44: =ROUND((M44*$B$2),2) -> 5.11 | P44: =O44*G44 -> 0
B45: RAUTITAN
B46: RAUTITAN | C46: x | E46: 11303701100 | F46: Унив.труба RAUTITAN flex 16x2,2, бухта 100м | H46: м | I46: 100 | J46: 1.8715 | K46: =J46*$B$2 -> 2.20837 | L46: =K46*G46 -> 0 | M46: =J46*(1-$E$5-$E$7)*(1-$E$9)*(1+$E$11) -> 1.8715 | N46: =M46*G46 -> 0 | O46: =ROUND((M46*$B$2),2) -> 2.21 | P46: =O46*G46 -> 0
B47: RAUTITAN | C47: x | E47: 11303801100 | F47: Унив.труба RAUTITAN flex 20x2,8, бухта 100м | H47: м | I47: 100 | J47: 2.603 | K47: 3.07154 | L47: 0 | M47: 2.603 | N47: 0 | O47: 3.07 | P47: 0
B48: RAUTITAN | C48: x | E48: 11303901050 | F48: Унив.труба RAUTITAN flex 25x3,5, бухта 50м | H48: м | I48: 50 | J48: 3.952 | K48: 4.66336 | L48: 0 | M48: 3.952 | N48: 0 | O48: 4.66 | P48: 0
B49: RAUTITAN | C49: x | E49: 11304001050 | F49: Унив.труба RAUTITAN flex 32x4,4, бухта 50м | H49: м | I49: 50 | J49: 5.776 | K49: 6.81568 | L49: 0 | M49: 5.776 | N49: 0 | O49: 6.82 | P49: 0
B50: RAUTITAN | C50: x | E50: 11303701006 | F50: Унив.труба RAUTITAN flex 16x2,2, прям.отрезки 6м | H50: м | I50: 60 | J50: 2.166 | K50: 2.55588 | L50: 0 | M50: 2.166 | N50: 0 | O50: 2.56 | P50: 0
B51: RAUTITAN | C51: x | E51: 11303801006 | F51: Унив.труба RAUTITAN flex 20x2,8, прям.отрезки 6м | H51: м | I51: 60 | J51: 2.907 | K51: 3.43026 | L51: 0 | M51: 2.907 | N51: 0 | O51: 3.43 | P51: 0
B52: RAUTITAN | C52: x | E52: 11303901006 | F52: Унив.труба RAUTITAN flex 25x3,5, прям.отрезки 6м | H52: м | I52: 30 | J52: 4.237 | K52: 4.99966 | L52: 0 | M52: 4.237 | N52: 0 | O52: 5 | P52: 0
B53: RAUTITAN | C53: x | E53: 11304001006 | F53: Унив.труба RAUTITAN flex 32x4,4, прям.отрезки 6м | H53: м | I53: 30 | J53: 6.0705 | K53: 7.16319 | L53: 0 | M53: 6.0705 | N53: 0 | O53: 7.16 | P53: 0
B54: RAUTITAN | C54: x | E54: 11304101006 | F54: Унив.труба RAUTITAN flex 40x5,5, прям.отрезки 6м | H54: м | I54: 12 | J54: 9.405 | K54: 11.0979 | L54: 0 | M54: 9.405 | N54: 0 | O54: 11.1 | P54: 0
B55: RAUTITAN | E55: 11304201006 | F55: Унив.труба RAUTITAN flex 50x6,9, прям.отрезки 6м | H55: м | I55: 6 | J55: 12.3785 | K55: 14.60663 | L55: 0 | M55: 12.3785 | N55: 0 | O55: 14.61 | P55: 0
B56: RAUTITAN | E56: 11304301006 | F56: Унив.труба RAUTITAN flex 63x8,6, прям.отрезки 6м | H56: м | I56: 6 | J56: 18.2685 | K56: 21.55683 | L56: 0 | M56: 18.2685 | N56: 0 | O56: 21.56 | P56: 0
B57: RAUTITAN
B58: RAUTITAN | C58: под заказ | E58: 11308701050 | F58: Унив.труба RAUTITAN flex 16х2,2, прямоуг., изол.9 мм, бухта 50м | H58: м | I58: 50 | J58: 4.7215 | K58: =J58*$B$2 -> 5.57137 | L58: =K58*G58 -> 0 | M58: =J58*(1-$E$5-$E$7)*(1-$E$9)*(1+$E$11) -> 4.7215 | N58: =M58*G58 -> 0 | O58: =ROUND((M58*$B$2),2) -> 5.57 | P58: =O58*G58 -> 0
B59: RAUTITAN | C59: под заказ | E59: 11308801050 | F59: Унив.труба RAUTITAN flex 20х2,8, прямоуг., изол.9 мм, бухта 50м | H59: м | I59: 50 | J59: 5.567 | K59: =J59*$B$2 -> 6.56906 | L59: =K59*G59 -> 0 | M59: =J59*(1-$E$5-$E$7)*(1-$E$9)*(1+$E$11) -> 5.567 | N59: =M59*G59 -> 0 | O59: =ROUND((M59*$B$2),2) -> 6.57 | P59: =O59*G59 -> 0
B60: RAUTITAN | C60: под заказ | E60: 11308901025 | F60: Унив.труба RAUTITAN flex 16х2,2, прямоуг., изол.26 мм, бухта 25м | H60: м | I60: 25 | J60: 6.707 | K60: =J60*$B$2 -> 7.91426 | L60: =K60*G60 -> 0 | M60: =J60*(1-$E$5-$E$7)*(1-$E$9)*(1+$E$11) -> 6.707 | N60: =M60*G60 -> 0 | O60: =ROUND((M60*$B$2),2) -> 7.91 | P60: =O60*G60 -> 0
B61: RAUTITAN | C61: под заказ | E61: 11309001025 | F61: Унив.труба RAUTITAN flex 20х2,8, прямоуг., изол.26 мм, бухта 25м | H61: м | I61: 25 | J61: 7.8945 | K61: =J61*$B$2 -> 9.31551 | L61: =K61*G61 -> 0 | M61: =J61*(1-$E$5-$E$7)*(1-$E$9)*(1+$E$11) -> 7.8945 | N61: =M61*G61 -> 0 | O61: =ROUND((M61*$B$2),2) -> 9.32 | P61: =O61*G61 -> 0
B62: RAUTITAN
B63: RAUTITAN | C63: под заказ | E63: 11304601050 | F63: Унив.труба RAUTITAN flex 16х2,2, кругл., изол.4 мм, бухта 50м | H63: м | I63: 50 | J63: 3.059 | K63: =J63*$B$2 -> 3.60962 | L63: =K63*G63 -> 0 | M63: =J63*(1-$E$5-$E$7)*(1-$E$9)*(1+$E$11) -> 3.059 | N63: =M63*G63 -> 0 | O63: =ROUND((M63*$B$2),2) -> 3.61 | P63: =O63*G63 -> 0
B64: RAUTITAN | C64: под заказ | E64: 11304701050 | F64: Унив.труба RAUTITAN flex 20х2,8, кругл., изол.4 мм, бухта 50м | H64: м | I64: 50 | J64: 4.0565 | K64: 4.78667 | L64: 0 | M64: 4.0565 | N64: 0 | O64: 4.79 | P64: 0
B65: RAUTITAN | C65: под заказ | E65: 11315071025 | F65: Унив.труба RAUTITAN flex 25x3,5, кругл., изол. 4 мм, бухта 25 м. | H65: м | I65: 25 | J65: 5.7 | K65: 6.726 | L65: 0 | M65: 5.7 | N65: 0 | O65: 6.73 | P65: 0
B66: RAUTITAN | C66: под заказ | E66: 11304801050 | F66: Унив.труба RAUTITAN flex 16 х2,2, кругл., изол.9 мм, бухта 50м | H66: м | I66: 50 | J66: 3.572 | K66: 4.21496 | L66: 0 | M66: 3.572 | N66: 0 | O66: 4.21 | P66: 0
B67: RAUTITAN | C67: под заказ | E67: 11304901050 | F67: Унив.труба RAUTITAN flex 20х2,8, кругл., изол.9 мм, бухта 50м | H67: м | I67: 50 | J67: 4.617 | K67: 5.44806 | L67: 0 | M67: 4.617 | N67: 0 | O67: 5.45 | P67: 0
B68: RAUTITAN | C68: под заказ | E68: 11315081025 | F68: Унив.труба RAUTITAN flex 25x3,5, кругл., изол. 9 мм, бухта 25 м. | H68: м | I68: 25 | J68: 6.023 | K68: 7.10714 | L68: 0 | M68: 6.023 | N68: 0 | O68: 7.11 | P68: 0
B69: RAUTITAN | C69: под заказ | E69: 11315091025 | F69: Унив.труба RAUTITAN flex 16x2,2, кругл., изол. 13 мм, бухта 25 м. | H69: м | I69: 25 | J69: 3.876 | K69: 4.57368 | L69: 0 | M69: 3.876 | N69: 0 | O69: 4.57 | P69: 0
B70: RAUTITAN | C70: под заказ | E70: 11315151025 | F70: Унив.труба RAUTITAN flex 20x2,8, кругл., изол. 13 мм, бухта 25 м. | H70: м | I70: 25 | J70: 4.6835 | K70: 5.52653 | L70: 0 | M70: 4.6835 | N70: 0 | O70: 5.53 | P70: 0
B71: RAUTITAN | C71: под заказ | E71: 11315171025 | F71: Унив.труба RAUTITAN flex 25x3,5, кругл., изол. 13 мм, бухта 25 м. | H71: м | I71: 25 | J71: 6.479 | K71: 7.64522 | L71: 0 | M71: 6.479 | N71: 0 | O71: 7.65 | P71: 0
B72: RAUTITAN
B73: RAUTITAN | C73: под заказ | E73: 11304401050 | F73: Унив.труба RAUTITAN flex 16х2,2 в гофротрубе, бухта 50м | H73: м | I73: 50 | J73: 2.565 | K73: =J73*$B$2 -> 3.0267 | L73: =K73*G73 -> 0 | M73: =J73*(1-$E$5-$E$7)*(1-$E$9)*(1+$E$11) -> 2.565 | N73: =M73*G73 -> 0 | O73: =ROUND((M73*$B$2),2) -> 3.03 | P73: =O73*G73 -> 0
B74: RAUTITAN | C74: под заказ | E74: 11304501050 | F74: Унив.труба RAUTITAN flex 20х2,8 в гофротрубе, бухта 50м | H74: м | I74: 50 | J74: 3.3915 | K74: =J74*$B$2 -> 4.00197 | L74: =K74*G74 -> 0 | M74: =J74*(1-$E$5-$E$7)*(1-$E$9)*(1+$E$11) -> 3.3915 | N74: =M74*G74 -> 0 | O74: =ROUND((M74*$B$2),2) -> 4 | P74: =O74*G74 -> 0
B75: RAUTITAN
B76: RAUTITAN | C76: x | E76: 11370101100 | F76: Труба водопров. RAUTITAN his 16x2,2, бухта 100 м | H76: м | I76: 100 | J76: 1.395 | K76: =J76*$B$2 -> 1.6461 | L76: =K76*G76 -> 0 | M76: =J76*(1-$E$5-$E$7)*(1-$E$9)*(1+$E$11) -> 1.395 | N76: =M76*G76 -> 0 | O76: =ROUND((M76*$B$2),2) -> 1.65 | P76: =O76*G76 -> 0
B77: RAUTITAN | E77: 11370101006 | F77: Труба водопров. RAUTITAN his 16x2,2, прямые отрезки 6 м | H77: м | I77: 60 | J77: 1.62 | K77: 1.9116 | L77: 0 | M77: 1.62 | N77: 0 | O77: 1.91 | P77: 0
B78: RAUTITAN | C78: x | E78: 11370201100 | F78: Труба водопров. RAUTITAN his 20x2,8, бухта 100 м | H78: м | I78: 100 | J78: 1.944 | K78: 2.29392 | L78: 0 | M78: 1.944 | N78: 0 | O78: 2.29 | P78: 0
B79: RAUTITAN | E79: 11370201006 | F79: Труба водопров. RAUTITAN his 20x2,8, прямые отрезки 6 м | H79: м | I79: 60 | J79: 2.097 | K79: 2.47446 | L79: 0 | M79: 2.097 | N79: 0 | O79: 2.47 | P79: 0
B80: RAUTITAN | C80: x | E80: 11370301050 | F80: Труба водопров. RAUTITAN his 25x3,5, бухта 50 м | H80: м | I80: 50 | J80: 2.97 | K80: 3.5046 | L80: 0 | M80: 2.97 | N80: 0 | O80: 3.5 | P80: 0
B81: RAUTITAN | E81: 11370301006 | F81: Труба водопров. RAUTITAN his 25x3,5, прямые отрезки 6 м | H81: м | I81: 30 | J81: 3.195 | K81: 3.7701 | L81: 0 | M81: 3.195 | N81: 0 | O81: 3.77 | P81: 0
B82: RAUTITAN | E82: 11370401050 | F82: Труба водопров. RAUTITAN his 32x4,4, бухта 50 м | H82: м | I82: 50 | J82: 5.454 | K82: 6.43572 | L82: 0 | M82: 5.454 | N82: 0 | O82: 6.44 | P82: 0
B83: RAUTITAN | E83: 11370401006 | F83: Труба водопров. RAUTITAN his 32x4,4, прямые отрезки 6 м | H83: м | I83: 30 | J83: 5.751 | K83: 6.78618 | L83: 0 | M83: 5.751 | N83: 0 | O83: 6.79 | P83: 0
B84: RAUTITAN | E84: 11383201006 | F84: Труба водопров. RAUTITAN his 40x5,5, прямые отрезки 6 м | H84: м | I84: 12 | J84: 8.91 | K84: 10.5138 | L84: 0 | M84: 8.91 | N84: 0 | O84: 10.51 | P84: 0
B85: RAUTITAN | E85: 11383301006 | F85: Труба водопров. RAUTITAN his 50x6,9, прямые отрезки 6 м | H85: м | I85: 6 | J85: 11.727 | K85: 13.83786 | L85: 0 | M85: 11.727 | N85: 0 | O85: 13.84 | P85: 0
B86: RAUTITAN | E86: 11383401006 | F86: Труба водопров. RAUTITAN his 63x8,6, прямые отрезки 6 м | H86: м | I86: 6 | J86: 17.307 | K86: 20.42226 | L86: 0 | M86: 17.307 | N86: 0 | O86: 20.42 | P86: 0
B87: RAUTITAN
B88: RAUTITAN | C88: x | E88: 11360421120 | F88: Отоп. труба RAUTITAN pink 16х2,2 мм, бухта 120 м | H88: м | I88: 120 | J88: 1.386 | K88: =J88*$B$2 -> 1.63548 | L88: =K88*G88 -> 0 | M88: =J88*(1-$E$5-$E$7)*(1-$E$9)*(1+$E$11) -> 1.386 | N88: =M88*G88 -> 0 | O88: =ROUND((M88*$B$2),2) -> 1.64 | P88: =O88*G88 -> 0
B89: RAUTITAN | E89: 11360421006 | F89: Отоп. труба RAUTITAN pink 16х2,2 мм, прямые отрезки 6 м | H89: м | I89: 60 | J89: 1.575 | K89: 1.8585 | L89: 0 | M89: 1.575 | N89: 0 | O89: 1.86 | P89: 0
B90: RAUTITAN | C90: x | E90: 11360521120 | F90: Отоп. труба RAUTITAN pink 20х2,8 мм, бухта 120 м | H90: м | I90: 120 | J90: 1.917 | K90: 2.26206 | L90: 0 | M90: 1.917 | N90: 0 | O90: 2.26 | P90: 0
B91: RAUTITAN | E91: 11360521006 | F91: Отоп. труба RAUTITAN pink 20х2,8 мм, прямые отрезки 6 м | H91: м | I91: 60 | J91: 2.061 | K91: 2.43198 | L91: 0 | M91: 2.061 | N91: 0 | O91: 2.43 | P91: 0
B92: RAUTITAN | C92: x | E92: 11360621050 | F92: Отоп. труба RAUTITAN pink 25х3,5 мм, бухта 50 м | H92: м | I92: 50 | J92: 2.925 | K92: 3.4515 | L92: 0 | M92: 2.925 | N92: 0 | O92: 3.45 | P92: 0
B93: RAUTITAN | E93: 11360621006 | F93: Отоп. труба RAUTITAN pink 25х3,5 мм, прямые отрезки 6 м | H93: м | I93: 30 | J93: 3.177 | K93: 3.74886 | L93: 0 | M93: 3.177 | N93: 0 | O93: 3.75 | P93: 0
B94: RAUTITAN | C94: x | E94: 11360721050 | F94: Отоп. труба RAUTITAN pink 32х4,4 мм, бухта 50 м | H94: м | I94: 50 | J94: 4.68 | K94: 5.5224 | L94: 0 | M94: 4.68 | N94: 0 | O94: 5.52 | P94: 0
B95: RAUTITAN | E95: 11360721006 | F95: Отоп. труба RAUTITAN pink 32х4,4 мм, прямые отрезки 6 м | H95: м | I95: 30 | J95: 5.067 | K95: 5.97906 | L95: 0 | M95: 5.067 | N95: 0 | O95: 5.98 | P95: 0
B96: RAUTITAN | C96: x | E96: 11360821006 | F96: Отоп. труба RAUTITAN pink 40х5,5 мм, прямые отрезки 6 м | H96: м | I96: 12 | J96: 7.866 | K96: 9.28188 | L96: 0 | M96: 7.866 | N96: 0 | O96: 9.28 | P96: 0
B97: RAUTITAN | E97: 11360921006 | F97: Отоп. труба RAUTITAN pink 50х6,9 мм, прямые отрезки 6 м | H97: м | I97: 6 | J97: 10.305 | K97: 12.1599 | L97: 0 | M97: 10.305 | N97: 0 | O97: 12.16 | P97: 0
B98: RAUTITAN | E98: 11361021006 | F98: Отоп. труба RAUTITAN pink 63х8,7 мм, прямые отрезки 6 м | H98: м | I98: 6 | J98: 14.895 | K98: 17.5761 | L98: 0 | M98: 14.895 | N98: 0 | O98: 17.58 | P98: 0
B99: RAUTITAN
B100: RAUTITAN | C100: x | E100: 11331691200 | F100: Отоп. труба RAUTITAN black 16х2,2 мм, бухта 200 м | H100: м | I100: 2600 | J100: - | K100: по запросу | L100: =K100*G100 -> 0 | M100: =J100*(1-$E$5-$E$7)*(1-$E$9)*(1+$E$11) -> 0 | N100: =M100*G100 -> 0 | O100: =ROUND((M100*$B$2),2) -> 0 | P100: =O100*G100 -> 0
B101: RAUTITAN | C101: x | E101: 11331791180 | F101: Отоп. труба RAUTITAN black 20х2,8 мм, бухта 180 м | H101: м | I101: 1440 | J101: - | K101: по запросу | L101: =K101*G101 -> 0 | M101: 0 | N101: =M101*G101 -> 0 | O101: 0 | P101: =O101*G101 -> 0
B102: RAUTITAN | C102: x | E102: 11331891100 | F102: Отоп. труба RAUTITAN black 25х3,5 мм, бухта 100 м | H102: м | I102: 800 | J102: - | K102: по запросу | L102: =K102*G102 -> 0 | M102: 0 | N102: =M102*G102 -> 0 | O102: 0 | P102: =O102*G102 -> 0
B104: RAUTITAN | E104: 11371401050 | F104: Гофротруба защитн.для ПЭ-трубы 16/17, бухта 50м | H104: м | I104: 50 | J104: 0.74 | K104: =J104*$B$2 -> 0.8732 | L104: =K104*G104 -> 0 | M104: =J104*(1-$E$5-$E$7)*(1-$E$9)*(1+$E$11) -> 0.74 | N104: =M104*G104 -> 0 | O104: =ROUND((M104*$B$2),2) -> 0.87 | P104: =O104*G104 -> 0
B105: RAUTITAN | E105: 11371501050 | F105: Гофротруба защитн.для ПЭ-трубы 20, бухта 50м | H105: м | I105: 50 | J105: 0.83 | K105: =J105*$B$2 -> 0.9794 | L105: =K105*G105 -> 0 | M105: =J105*(1-$E$5-$E$7)*(1-$E$9)*(1+$E$11) -> 0.83 | N105: =M105*G105 -> 0 | O105: =ROUND((M105*$B$2),2) -> 0.98 | P105: =O105*G105 -> 0
B106: RAUTITAN | E106: 11371601025 | F106: Гофротруба защитн.для ПЭ-трубы 25, бухта 25м | H106: м | I106: 25 | J106: 1.09 | K106: =J106*$B$2 -> 1.2862 | L106: =K106*G106 -> 0 | M106: =J106*(1-$E$5-$E$7)*(1-$E$9)*(1+$E$11) -> 1.09 | N106: =M106*G106 -> 0 | O106: =ROUND((M106*$B$2),2) -> 1.29 | P106: =O106*G106 -> 0
B107: RAUTITAN | E107: 11371701025 | F107: Гофротруба защитн.для ПЭ-трубы 32, бухта 25м | H107: м | I107: 25 | J107: 1.51 | K107: =J107*$B$2 -> 1.7818 | L107: =K107*G107 -> 0 | M107: =J107*(1-$E$5-$E$7)*(1-$E$9)*(1+$E$11) -> 1.51 | N107: =M107*G107 -> 0 | O107: =ROUND((M107*$B$2),2) -> 1.78 | P107: =O107*G107 -> 0
B108: RAUTITAN
B109: RAUTITAN | C109: x | E109: 11380331001 | F109: Фиксирующий желоб для ПЭ-трубы 16/17 | H109: м | I109: 30 | J109: 1.34 | K109: =J109*$B$2 -> 1.5812 | L109: =K109*G109 -> 0 | M109: =J109*(1-$E$5-$E$7)*(1-$E$9)*(1+$E$11) -> 1.34 | N109: =M109*G109 -> 0 | O109: =ROUND((M109*$B$2),2) -> 1.58 | P109: =O109*G109 -> 0
B110: RAUTITAN | C110: x | E110: 11380431001 | F110: Фиксирующий желоб для ПЭ-трубы 20 | H110: м | I110: 30 | J110: 1.46 | K110: 1.7228 | L110: 0 | M110: 1.46 | N110: 0 | O110: 1.72 | P110: 0
B111: RAUTITAN | C111: x | E111: 11380531001 | F111: Фиксирующий желоб для ПЭ-трубы 25 | H111: м | I111: 30 | J111: 1.92 | K111: 2.2656 | L111: 0 | M111: 1.92 | N111: 0 | O111: 2.27 | P111: 0
B112: RAUTITAN | C112: x | E112: 11380631001 | F112: Фиксирующий желоб для ПЭ-трубы 32 | H112: м | I112: 30 | J112: 2.37 | K112: 2.7966 | L112: 0 | M112: 2.37 | N112: 0 | O112: 2.8 | P112: 0
B113: RAUTITAN | C113: x | E113: 11380731001 | F113: Фиксирующий желоб для ПЭ-трубы 40 | H113: м | I113: 15 | J113: 3.61 | K113: 4.2598 | L113: 0 | M113: 3.61 | N113: 0 | O113: 4.26 | P113: 0
B114: RAUTITAN | E114: 11380831001 | F114: Фиксирующий желоб для ПЭ-трубы 50 | H114: м | I114: 15 | J114: 4.48 | K114: 5.2864 | L114: 0 | M114: 4.48 | N114: 0 | O114: 5.29 | P114: 0
B115: RAUTITAN | E115: 11380931001 | F115: Фиксирующий желоб для ПЭ-трубы 63 | H115: м | I115: 15 | J115: 5.38 | K115: 6.3484 | L115: 0 | M115: 5.38 | N115: 0 | O115: 6.35 | P115: 0
B116: RAUTITAN
B117: RAUTITAN | E117: 12414431001 | F117: Противопожарная манжета 16/17 для РЕХ | H117: шт | I117: 1 | J117: 48.5 | K117: =J117*$B$2 -> 57.23 | L117: =K117*G117 -> 0 | M117: =J117*(1-$E$5-$E$7)*(1-$E$9)*(1+$E$11) -> 48.5 | N117: =M117*G117 -> 0 | O117: =ROUND((M117*$B$2),2) -> 57.23 | P117: =O117*G117 -> 0
B118: RAUTITAN | E118: 12414531001 | F118: Противопожарная манжета 20 для РЕХ | H118: шт | I118: 1 | J118: 51.39 | K118: 60.6402 | L118: 0 | M118: 51.39 | N118: 0 | O118: 60.64 | P118: 0
B119: RAUTITAN | E119: 12414631001 | F119: Противопожарная манжета 25 для РЕХ | H119: шт | I119: 1 | J119: 54.29 | K119: 64.0622 | L119: 0 | M119: 54.29 | N119: 0 | O119: 64.06 | P119: 0
B120: RAUTITAN | E120: 12414731001 | F120: Противопожарная манжета 32 для РЕХ | H120: шт | I120: 1 | J120: 58.84 | K120: 69.4312 | L120: 0 | M120: 58.84 | N120: 0 | O120: 69.43 | P120: 0
B121: RAUTITAN | E121: 12414831001 | F121: Противопожарная манжета 40 для РЕХ | H121: шт | I121: 1 | J121: 65.13 | K121: 76.8534 | L121: 0 | M121: 65.13 | N121: 0 | O121: 76.85 | P121: 0
B122: RAUTITAN | E122: 12414931001 | F122: Противопожарная манжета 50 для РЕХ | H122: шт | I122: 1 | J122: 66.25 | K122: 78.175 | L122: 0 | M122: 66.25 | N122: 0 | O122: 78.18 | P122: 0
B123: RAUTITAN | E123: 12415031001 | F123: Противопожарная манжета 63 для РЕХ | H123: шт | I123: 1 | J123: 75.43 | K123: 89.0074 | L123: 0 | M123: 75.43 | N123: 0 | O123: 89.01 | P123: 0
B124: RAUTITAN
B125: RAUTITAN | F125: 1.1.2. Универсальные фитинги RAUTITAN для водоснабжения и отопления
B126: RAUTITAN | E126: 11397711002 | F126: Монтажная гильза 50 MX | H126: шт | I126: 25 | J126: 6.59 | K126: =J126*$B$2 -> 7.7762 | L126: =K126*G126 -> 0 | M126: =J126*(1-$E$5-$E$7)*(1-$E$9)*(1+$E$11) -> 6.59 | N126: =M126*G126 -> 0 | O126: =ROUND((M126*$B$2),2) -> 7.78 | P126: =O126*G126 -> 0
B127: RAUTITAN | E127: 11397811002 | F127: Монтажная гильза 63 MX | H127: шт | I127: 25 | J127: 9.33 | K127: 11.0094 | L127: 0 | M127: 9.33 | N127: 0 | O127: 11.01 | P127: 0
B128: RAUTITAN | C128: x | E128: 11600011001 | F128: Монтажная гильза 16 PX | H128: шт | I128: 100 | J128: 0.61 | K128: 0.7198 | L128: 0 | M128: 0.61 | N128: 0 | O128: 0.72 | P128: 0
B129: RAUTITAN | C129: x | E129: 11600021001 | F129: Монтажная гильза 20 PX | H129: шт | I129: 100 | J129: 0.78 | K129: 0.9204 | L129: 0 | M129: 0.78 | N129: 0 | O129: 0.92 | P129: 0
B130: RAUTITAN | C130: x | E130: 11600031001 | F130: Монтажная гильза 25 PX | H130: шт | I130: 100 | J130: 1.03 | K130: 1.2154 | L130: 0 | M130: 1.03 | N130: 0 | O130: 1.22 | P130: 0
B131: RAUTITAN | C131: x | E131: 11600041001 | F131: Монтажная гильза 32 PX | H131: шт | I131: 50 | J131: 1.98 | K131: 2.3364 | L131: 0 | M131: 1.98 | N131: 0 | O131: 2.34 | P131: 0
B132: RAUTITAN | C132: x | E132: 11600051001 | F132: Монтажная гильза 40 PX | H132: шт | I132: 25 | J132: 3.64 | K132: 4.2952 | L132: 0 | M132: 3.64 | N132: 0 | O132: 4.3 | P132: 0
B133: RAUTITAN
B134: RAUTITAN | E134: 11371551001 | F134: Тройник равнопроходный 50-50-50 MX После реализации складского запаса заменяется на 13660011001 | H134: шт | I134: 1 | J134: 38.92 | K134: =J134*$B$2 -> 45.9256 | L134: =K134*G134 -> 0 | M134: =J134*(1-$E$5-$E$7)*(1-$E$9)*(1+$E$11) -> 38.92 | N134: =M134*G134 -> 0 | O134: =ROUND((M134*$B$2),2) -> 45.93 | P134: =O134*G134 -> 0
B135: RAUTITAN | D135: 11371551001 | E135: 13660011001 | F135: Тройник равнопроходный 50-50-50 RX | H135: шт | I135: 1 | J135: 47.12 | K135: =J135*$B$2 -> 55.6016 | L135: 0 | M135: =J135*(1-$E$5-$E$7)*(1-$E$9)*(1+$E$11) -> 47.12 | N135: 0 | O135: =ROUND((M135*$B$2),2) -> 55.6 | P135: 0
B136: RAUTITAN | D136: 11371651001 | E136: 13660021001 | F136: Тройник равнопроходный 63-63-63 RX | H136: шт | I136: 1 | J136: 62.12 | K136: =J136*$B$2 -> 73.3016 | L136: 0 | M136: =J136*(1-$E$5-$E$7)*(1-$E$9)*(1+$E$11) -> 62.12 | N136: 0 | O136: =ROUND((M136*$B$2),2) -> 73.3 | P136: 0
B137: RAUTITAN | C137: x | E137: 11600311001 | F137: Тройник равнопроходный 16-16-16 PX | H137: шт | I137: 10 | J137: 4.82 | K137: =J137*$B$2 -> 5.6876 | L137: 0 | M137: =J137*(1-$E$5-$E$7)*(1-$E$9)*(1+$E$11) -> 4.82 | N137: 0 | O137: =ROUND((M137*$B$2),2) -> 5.69 | P137: 0
B138: RAUTITAN | C138: x | E138: 11600321001 | F138: Тройник равнопроходный 20-20-20 PX | H138: шт | I138: 10 | J138: 6.35 | K138: 7.493 | L138: 0 | M138: 6.35 | N138: 0 | O138: 7.49 | P138: 0
B139: RAUTITAN | C139: x | E139: 11600331001 | F139: Тройник равнопроходный 25-25-25 PX | H139: шт | I139: 10 | J139: 7.17 | K139: 8.4606 | L139: 0 | M139: 7.17 | N139: 0 | O139: 8.46 | P139: 0
B140: RAUTITAN | C140: x | E140: 11600341001 | F140: Тройник равнопроходный 32-32-32 PX | H140: шт | I140: 3 | J140: 14.54 | K140: 17.1572 | L140: 0 | M140: 14.54 | N140: 0 | O140: 17.16 | P140: 0
B141: RAUTITAN | C141: x | E141: 11600351001 | F141: Тройник равнопроходный 40-40-40 PX | H141: шт | I141: 2 | J141: 28.5 | K141: 33.63 | L141: 0 | M141: 28.5 | N141: 0 | O141: 33.63 | P141: 0
B142: RAUTITAN
B143: RAUTITAN | E143: 13662751001 | F143: Тройник с повышенным сопротивлением на проходе 32-16-25 RX | H143: шт | I143: 1 | J143: 22.06 | K143: =J143*$B$2 -> 26.0308 | L143: =K143*G143 -> 0 | M143: =J143*(1-$E$5-$E$7)*(1-$E$9)*(1+$E$11) -> 22.06 | N143: =M143*G143 -> 0 | O143: =ROUND((M143*$B$2),2) -> 26.03 | P143: =O143*G143 -> 0
B144: RAUTITAN | E144: 13662761001 | F144: Тройник с повышенным сопротивлением на проходе 40-16-32 RX | H144: шт | I144: 1 | J144: 39.75 | K144: =J144*$B$2 -> 46.905 | L144: =K144*G144 -> 0 | M144: =J144*(1-$E$5-$E$7)*(1-$E$9)*(1+$E$11) -> 39.75 | N144: =M144*G144 -> 0 | O144: =ROUND((M144*$B$2),2) -> 46.91 | P144: =O144*G144 -> 0
B145: RAUTITAN | E145: 13662771001 | F145: Тройник с повышенным сопротивлением на проходе 40-20-32 RX | H145: шт | I145: 1 | J145: 38.95 | K145: =J145*$B$2 -> 45.961 | L145: =K145*G145 -> 0 | M145: =J145*(1-$E$5-$E$7)*(1-$E$9)*(1+$E$11) -> 38.95 | N145: =M145*G145 -> 0 | O145: =ROUND((M145*$B$2),2) -> 45.96 | P145: =O145*G145 -> 0
B146: RAUTITAN
B147: RAUTITAN | E147: 11313851001 | F147: Проточный настенный угольник 16/16-Rp 1/2 длинный RX | H147: шт | I147: 5 | J147: 28.44 | K147: =J147*$B$2 -> 33.5592 | L147: =K147*G147 -> 0 | M147: =J147*(1-$E$5-$E$7)*(1-$E$9)*(1+$E$11) -> 28.44 | N147: =M147*G147 -> 0 | O147: =ROUND((M147*$B$2),2) -> 33.56 | P147: =O147*G147 -> 0
B148: RAUTITAN | E148: 11313951001 | F148: Проточный настенный угольник 20/20-Rp 1/2 длинный RX | H148: шт | I148: 5 | J148: 29.63 | K148: 34.9634 | L148: 0 | M148: 29.63 | N148: 0 | O148: 34.96 | P148: 0
B149: RAUTITAN | E149: 13662841001 | F149: Проточный настенный угольник 16/16-Rp 1/2 короткий RX | H149: шт | I149: 5 | J149: 26.04 | K149: 30.7272 | L149: 0 | M149: 26.04 | N149: 0 | O149: 30.73 | P149: 0
B150: RAUTITAN | E150: 13662851001 | F150: Проточный настенный угольник 20/20-Rp 1/2 короткий RX | H150: шт | I150: 5 | J150: 27.52 | K150: 32.4736 | L150: 0 | M150: 27.52 | N150: 0 | O150: 32.47 | P150: 0
A151: N | B151: RAUTITAN | E151: 13663001001 | F151: Проточный настенный угольник 16/20-Rp 1/2 короткий RX | H151: шт | I151: 5 | J151: 27.52 | K151: 32.4736 | L151: 0 | M151: 27.52 | N151: 0 | O151: 32.47 | P151: 0
A152: N | B152: RAUTITAN | E152: 13663031001 | F152: Проточный настенный угольник 20/16-Rp 1/2 короткий RX | H152: шт | I152: 5 | J152: 27.52 | K152: 32.4736 | L152: 0 | M152: 27.52 | N152: 0 | O152: 32.47 | P152: 0
B153: RAUTITAN
B154: RAUTITAN | E154: 13662791001 | F154: Тройник RAUTITAN RX с наружной резьбой 16-16-R 1/2 | H154: шт | I154: 4 | J154: 14.59 | K154: =J154*$B$2 -> 17.2162 | L154: =K154*G154 -> 0 | M154: =J154*(1-$E$5-$E$7)*(1-$E$9)*(1+$E$11) -> 14.59 | N154: =M154*G154 -> 0 | O154: =ROUND((M154*$B$2),2) -> 17.22 | P154: =O154*G154 -> 0
B155: RAUTITAN | E155: 13662801001 | F155: Тройник RAUTITAN RX с наружной резьбой 20-20-R 1/2 | H155: шт | I155: 4 | J155: 17.73 | K155: =J155*$B$2 -> 20.9214 | L155: =K155*G155 -> 0 | M155: =J155*(1-$E$5-$E$7)*(1-$E$9)*(1+$E$11) -> 17.73 | N155: =M155*G155 -> 0 | O155: =ROUND((M155*$B$2),2) -> 20.92 | P155: =O155*G155 -> 0
B156: RAUTITAN | E156: 13662811001 | F156: Тройник RAUTITAN RX с наружной резьбой 20-20-R 3/4 | H156: шт | I156: 4 | J156: 19.31 | K156: =J156*$B$2 -> 22.7858 | L156: =K156*G156 -> 0 | M156: =J156*(1-$E$5-$E$7)*(1-$E$9)*(1+$E$11) -> 19.31 | N156: =M156*G156 -> 0 | O156: =ROUND((M156*$B$2),2) -> 22.79 | P156: =O156*G156 -> 0
B157: RAUTITAN
B158: RAUTITAN | D158: 12303481001 | E158: 13660031001 | F158: Тройник с уменьшенным боковым проходом 50-20-50 RX | H158: шт | I158: 1 | J158: 41.74 | K158: =J158*$B$2 -> 49.2532 | L158: =K158*G158 -> 0 | M158: =J158*(1-$E$5-$E$7)*(1-$E$9)*(1+$E$11) -> 41.74 | N158: =M158*G158 -> 0 | O158: =ROUND((M158*$B$2),2) -> 49.25 | P158: =O158*G158 -> 0
B159: RAUTITAN | E159: 12303581001 | F159: Тройник с уменьшенным боковым проходом 50-25-50 MX | H159: шт | I159: 1 | J159: 38.92 | K159: 45.9256 | L159: 0 | M159: 38.92 | N159: 0 | O159: 45.93 | P159: 0
B160: RAUTITAN | D160: 11397921001 | E160: 13660051001 | F160: Тройник с уменьшенным боковым проходом 50-32-50 RX | H160: шт | I160: 1 | J160: 43.78 | K160: 51.6604 | L160: 0 | M160: 43.78 | N160: 0 | O160: 51.66 | P160: 0
A161: D | B161: RAUTITAN | E161: 11370891001 | F161: Тройник с уменьшенным боковым проходом 50-40-50 MX | H161: шт | I161: 1 | J161: 38.92 | K161: =J161*$B$2 -> 45.9256 | L161: 0 | M161: =J161*(1-$E$5-$E$7)*(1-$E$9)*(1+$E$11) -> 38.92 | N161: 0 | O161: =ROUND((M161*$B$2),2) -> 45.93 | P161: 0
A162: N | B162: RAUTITAN | D162: 11370891001 | E162: 13660061001 | F162: Тройник с уменьшенным боковым проходом 50-40-50 RX | H162: шт | I162: 1 | J162: 43.78 | K162: 51.6604 | L162: 0 | M162: 43.78 | N162: 0 | O162: 51.66 | P162: 0
B163: RAUTITAN | E163: 13660081001 | F163: Тройник с уменьшенным боковым проходом 63-25-63 RX | H163: шт | I163: 1 | J163: 52.68 | K163: 62.1624 | L163: 0 | M163: 52.68 | N163: 0 | O163: 62.16 | P163: 0
B164: RAUTITAN | E164: 11371751001 | F164: Тройник с уменьшенным боковым проходом 63-32-63 MX | H164: шт | I164: 1 | J164: 48.82 | K164: 57.6076 | L164: 0 | M164: 48.82 | N164: 0 | O164: 57.61 | P164: 0
B165: RAUTITAN | D165: 11370741001 | E165: 13660101001 | F165: Тройник с уменьшенным боковым проходом 63-40-63 RX | H165: шт | I165: 1 | J165: 53.2 | K165: 62.776 | L165: 0 | M165: 53.2 | N165: 0 | O165: 62.78 | P165: 0
B166: RAUTITAN | D166: 11370841001 | E166: 13660111001 | F166: Тройник с уменьшенным боковым проходом 63-50-63 RX | H166: шт | I166: 1 | J166: 94.97 | K166: 112.0646 | L166: 0 | M166: 94.97 | N166: 0 | O166: 112.06 | P166: 0
B167: RAUTITAN | C167: x | E167: 11600611001 | F167: Тройник с уменьшенным боковым проходом 20-16-20 PX | H167: шт | I167: 10 | J167: 6.35 | K167: 7.493 | L167: 0 | M167: 6.35 | N167: 0 | O167: 7.49 | P167: 0
B168: RAUTITAN | C168: x | E168: 11600621001 | F168: Тройник с уменьшенным боковым проходом 25-16-25 PX | H168: шт | I168: 10 | J168: 7.17 | K168: 8.4606 | L168: 0 | M168: 7.17 | N168: 0 | O168: 8.46 | P168: 0
B169: RAUTITAN | C169: x | E169: 11600631001 | F169: Тройник с уменьшенным боковым проходом 25-20-25 PX | H169: шт | I169: 10 | J169: 7.17 | K169: 8.4606 | L169: 0 | M169: 7.17 | N169: 0 | O169: 8.46 | P169: 0
B170: RAUTITAN | C170: x | E170: 11600641001 | F170: Тройник с уменьшенным боковым проходом 32-16-32 PX | H170: шт | I170: 3 | J170: 14.54 | K170: 17.1572 | L170: 0 | M170: 14.54 | N170: 0 | O170: 17.16 | P170: 0
B171: RAUTITAN | C171: x | E171: 11600651001 | F171: Тройник с уменьшенным боковым проходом 32-20-32 PX | H171: шт | I171: 3 | J171: 14.54 | K171: 17.1572 | L171: 0 | M171: 14.54 | N171: 0 | O171: 17.16 | P171: 0
B172: RAUTITAN | C172: x | E172: 11600661001 | F172: Тройник с уменьшенным боковым проходом 32-25-32 PX | H172: шт | I172: 3 | J172: 14.54 | K172: 17.1572 | L172: 0 | M172: 14.54 | N172: 0 | O172: 17.16 | P172: 0
B173: RAUTITAN | C173: x | E173: 11600671001 | F173: Тройник с уменьшенным боковым проходом 40-20-40 PX | H173: шт | I173: 2 | J173: 28.5 | K173: 33.63 | L173: 0 | M173: 28.5 | N173: 0 | O173: 33.63 | P173: 0
B174: RAUTITAN | C174: x | E174: 11600681001 | F174: Тройник с уменьшенным боковым проходом 40-25-40 PX | H174: шт | I174: 2 | J174: 28.5 | K174: 33.63 | L174: 0 | M174: 28.5 | N174: 0 | O174: 33.63 | P174: 0
B175: RAUTITAN | C175: x | E175: 11600691001 | F175: Тройник с уменьшенным боковым проходом 40-32-40 PX | H175: шт | I175: 2 | J175: 28.5 | K175: 33.63 | L175: 0 | M175: 28.5 | N175: 0 | O175: 33.63 | P175: 0
B176: RAUTITAN
B177: RAUTITAN | C177: x | E177: 11600711001 | F177: Тройник с уменьшенным торцевым проходом 20-20-16 PX | H177: шт | I177: 10 | J177: 6.35 | K177: =J177*$B$2 -> 7.493 | L177: =K177*G177 -> 0 | M177: =J177*(1-$E$5-$E$7)*(1-$E$9)*(1+$E$11) -> 6.35 | N177: =M177*G177 -> 0 | O177: =ROUND((M177*$B$2),2) -> 7.49 | P177: =O177*G177 -> 0
B178: RAUTITAN | C178: x | E178: 11600721001 | F178: Тройник с уменьшенным торцевым проходом 25-25-16 PX | H178: шт | I178: 10 | J178: 7.17 | K178: =J178*$B$2 -> 8.4606 | L178: =K178*G178 -> 0 | M178: =J178*(1-$E$5-$E$7)*(1-$E$9)*(1+$E$11) -> 7.17 | N178: =M178*G178 -> 0 | O178: =ROUND((M178*$B$2),2) -> 8.46 | P178: =O178*G178 -> 0
B179: RAUTITAN | C179: x | E179: 11600731001 | F179: Тройник с уменьшенным торцевым проходом 25-25-20 PX | H179: шт | I179: 10 | J179: 7.17 | K179: =J179*$B$2 -> 8.4606 | L179: =K179*G179 -> 0 | M179: =J179*(1-$E$5-$E$7)*(1-$E$9)*(1+$E$11) -> 7.17 | N179: =M179*G179 -> 0 | O179: =ROUND((M179*$B$2),2) -> 8.46 | P179: =O179*G179 -> 0
B180: RAUTITAN | C180: x | E180: 11600741001 | F180: Тройник с уменьшенным торцевым проходом 32-32-20 PX | H180: шт | I180: 3 | J180: 14.54 | K180: =J180*$B$2 -> 17.1572 | L180: =K180*G180 -> 0 | M180: =J180*(1-$E$5-$E$7)*(1-$E$9)*(1+$E$11) -> 14.54 | N180: =M180*G180 -> 0 | O180: =ROUND((M180*$B$2),2) -> 17.16 | P180: =O180*G180 -> 0
B181: RAUTITAN | C181: x | E181: 11600751001 | F181: Тройник с уменьшенным торцевым проходом 32-32-25 PX | H181: шт | I181: 3 | J181: 14.54 | K181: =J181*$B$2 -> 17.1572 | L181: =K181*G181 -> 0 | M181: =J181*(1-$E$5-$E$7)*(1-$E$9)*(1+$E$11) -> 14.54 | N181: =M181*G181 -> 0 | O181: =ROUND((M181*$B$2),2) -> 17.16 | P181: =O181*G181 -> 0
B182: RAUTITAN
B183: RAUTITAN | D183: 11371951001 | E183: 13660121001 | F183: Тройник с уменьшенным боковым и торцевым проходами 50-32-40 RX | H183: шт | I183: 1 | J183: 43.78 | K183: =J183*$B$2 -> 51.6604 | L183: =K183*G183 -> 0 | M183: =J183*(1-$E$5-$E$7)*(1-$E$9)*(1+$E$11) -> 43.78 | N183: =M183*G183 -> 0 | O183: =ROUND((M183*$B$2),2) -> 51.66 | P183: =O183*G183 -> 0
B184: RAUTITAN | C184: x | E184: 11600811001 | F184: Тройник с уменьшенным боковым и торцевым проходами 20-16-16 PX | H184: шт | I184: 10 | J184: 4.82 | K184: =J184*$B$2 -> 5.6876 | L184: 0 | M184: =J184*(1-$E$5-$E$7)*(1-$E$9)*(1+$E$11) -> 4.82 | N184: 0 | O184: =ROUND((M184*$B$2),2) -> 5.69 | P184: 0
B185: RAUTITAN | C185: x | E185: 11600821001 | F185: Тройник с уменьшенным боковым и торцевым проходами 25-16-16 PX | H185: шт | I185: 10 | J185: 4.82 | K185: 5.6876 | L185: 0 | M185: 4.82 | N185: 0 | O185: 5.69 | P185: 0
B186: RAUTITAN | C186: x | E186: 11600831001 | F186: Тройник с уменьшенным боковым и торцевым проходами 25-16-20 PX | H186: шт | I186: 10 | J186: 6.35 | K186: 7.493 | L186: 0 | M186: 6.35 | N186: 0 | O186: 7.49 | P186: 0
B187: RAUTITAN | C187: x | E187: 11600841001 | F187: Тройник с уменьшенным боковым и торцевым проходами 25-20-16 PX | H187: шт | I187: 10 | J187: 6.35 | K187: 7.493 | L187: 0 | M187: 6.35 | N187: 0 | O187: 7.49 | P187: 0
B188: RAUTITAN | C188: x | E188: 11600851001 | F188: Тройник с уменьшенным боковым и торцевым проходами 25-20-20 PX | H188: шт | I188: 10 | J188: 6.35 | K188: 7.493 | L188: 0 | M188: 6.35 | N188: 0 | O188: 7.49 | P188: 0
B189: RAUTITAN | C189: x | E189: 11600861001 | F189: Тройник с уменьшенным боковым и торцевым проходами 32-20-20 PX | H189: шт | I189: 3 | J189: 14.54 | K189: 17.1572 | L189: 0 | M189: 14.54 | N189: 0 | O189: 17.16 | P189: 0
B190: RAUTITAN | C190: x | E190: 11600871001 | F190: Тройник с уменьшенным боковым и торцевым проходами 32-20-25 PX | H190: шт | I190: 3 | J190: 14.54 | K190: 17.1572 | L190: 0 | M190: 14.54 | N190: 0 | O190: 17.16 | P190: 0
B191: RAUTITAN | C191: x | E191: 11600891001 | F191: Тройник с уменьшенным боковым и торцевым проходами 32-25-20 PX | H191: шт | I191: 3 | J191: 14.54 | K191: 17.1572 | L191: 0 | M191: 14.54 | N191: 0 | O191: 17.16 | P191: 0
B192: RAUTITAN | C192: x | E192: 11600911001 | F192: Тройник с уменьшенным боковым и торцевым проходами 32-25-25 PX | H192: шт | I192: 3 | J192: 14.54 | K192: 17.1572 | L192: 0 | M192: 14.54 | N192: 0 | O192: 17.16 | P192: 0
B193: RAUTITAN | C193: x | E193: 11600921001 | F193: Тройник с уменьшенным боковым и торцевым проходами 40-32-32 PX | H193: шт | I193: 2 | J193: 28.5 | K193: 33.63 | L193: 0 | M193: 28.5 | N193: 0 | O193: 33.63 | P193: 0
B194: RAUTITAN
B195: RAUTITAN | C195: x | E195: 11601011001 | F195: Тройник с увеличенным боковым проходом 16-20-16 PX | H195: шт | I195: 10 | J195: 4.82 | K195: =J195*$B$2 -> 5.6876 | L195: =K195*G195 -> 0 | M195: =J195*(1-$E$5-$E$7)*(1-$E$9)*(1+$E$11) -> 4.82 | N195: =M195*G195 -> 0 | O195: =ROUND((M195*$B$2),2) -> 5.69 | P195: =O195*G195 -> 0
B196: RAUTITAN | C196: x | E196: 11601021001 | F196: Тройник с увеличенным боковым проходом 16-25-16 PX | H196: шт | I196: 10 | J196: 6.35 | K196: =J196*$B$2 -> 7.493 | L196: =K196*G196 -> 0 | M196: =J196*(1-$E$5-$E$7)*(1-$E$9)*(1+$E$11) -> 6.35 | N196: =M196*G196 -> 0 | O196: =ROUND((M196*$B$2),2) -> 7.49 | P196: =O196*G196 -> 0
B197: RAUTITAN | C197: x | E197: 11601031001 | F197: Тройник с увеличенным боковым проходом 20-25-16 PX | H197: шт | I197: 10 | J197: 6.35 | K197: =J197*$B$2 -> 7.493 | L197: =K197*G197 -> 0 | M197: =J197*(1-$E$5-$E$7)*(1-$E$9)*(1+$E$11) -> 6.35 | N197: =M197*G197 -> 0 | O197: =ROUND((M197*$B$2),2) -> 7.49 | P197: =O197*G197 -> 0
B198: RAUTITAN | C198: x | E198: 11601041001 | F198: Тройник с увеличенным боковым проходом 20-25-20 PX | H198: шт | I198: 10 | J198: 6.35 | K198: =J198*$B$2 -> 7.493 | L198: =K198*G198 -> 0 | M198: =J198*(1-$E$5-$E$7)*(1-$E$9)*(1+$E$11) -> 6.35 | N198: =M198*G198 -> 0 | O198: =ROUND((M198*$B$2),2) -> 7.49 | P198: =O198*G198 -> 0
B199: RAUTITAN | C199: x | E199: 11601061001 | F199: Тройник с увеличенным боковым проходом 25-32-25 PX | H199: шт | I199: 3 | J199: 14.54 | K199: =J199*$B$2 -> 17.1572 | L199: =K199*G199 -> 0 | M199: =J199*(1-$E$5-$E$7)*(1-$E$9)*(1+$E$11) -> 14.54 | N199: =M199*G199 -> 0 | O199: =ROUND((M199*$B$2),2) -> 17.16 | P199: =O199*G199 -> 0
B200: RAUTITAN
B201: RAUTITAN | D201: 11388411402 | E201: 13660161001 | F201: Тройник настенный с внутренней резьбой 16-Rp1/2-16 RX | H201: шт | I201: 10 | J201: 9.34 | K201: =J201*$B$2 -> 11.0212 | L201: =K201*G201 -> 0 | M201: =J201*(1-$E$5-$E$7)*(1-$E$9)*(1+$E$11) -> 9.34 | N201: =M201*G201 -> 0 | O201: =ROUND((M201*$B$2),2) -> 11.02 | P201: =O201*G201 -> 0
B202: RAUTITAN | D202: 11313881001 | E202: 13660171001 | F202: Тройник настенный с внутренней резьбой 20-Rp1/2-16 RX | H202: шт | I202: 10 | J202: 16.87 | K202: =J202*$B$2 -> 19.9066 | L202: =K202*G202 -> 0 | M202: =J202*(1-$E$5-$E$7)*(1-$E$9)*(1+$E$11) -> 16.87 | N202: =M202*G202 -> 0 | O202: =ROUND((M202*$B$2),2) -> 19.91 | P202: =O202*G202 -> 0
B203: RAUTITAN | E203: 11388511402 | F203: Тройник настенный с внутренней резьбой 20-Rp1/2-20 MX После реализации складского запаса заменятеся на 13660181001 | H203: шт | I203: 10 | J203: 9.74 | K203: =J203*$B$2 -> 11.4932 | L203: =K203*G203 -> 0 | M203: =J203*(1-$E$5-$E$7)*(1-$E$9)*(1+$E$11) -> 9.74 | N203: =M203*G203 -> 0 | O203: =ROUND((M203*$B$2),2) -> 11.49 | P203: =O203*G203 -> 0
B204: RAUTITAN | D204: 11388511402 | E204: 13660181001 | F204: Тройник настенный с внутренней резьбой 20-Rp1/2-20 RX | H204: шт | I204: 10 | J204: 9.74 | K204: =J204*$B$2 -> 11.4932 | L204: =K204*G204 -> 0 | M204: =J204*(1-$E$5-$E$7)*(1-$E$9)*(1+$E$11) -> 9.74 | N204: =M204*G204 -> 0 | O204: =ROUND((M204*$B$2),2) -> 11.49 | P204: =O204*G204 -> 0
B205: RAUTITAN
A206: N | B206: RAUTITAN | E206: 13662971001 | F206: Тройник с внутр. резьбой на боков. проходе 25-Rp 1/2-25 RX | H206: шт | I206: 10 | J206: 12.04 | K206: =J206*$B$2 -> 14.2072 | L206: =K206*G206 -> 0 | M206: =J206*(1-$E$5-$E$7)*(1-$E$9)*(1+$E$11) -> 12.04 | N206: =M206*G206 -> 0 | O206: =ROUND((M206*$B$2),2) -> 14.21 | P206: =O206*G206 -> 0
B207: RAUTITAN | D207: 12582061002 | E207: 13660201001 | F207: Тройник с внутр. резьбой на боков. проходе 25-Rp 3/4-25 RX | H207: шт | I207: 10 | J207: 12.04 | K207: =J207*$B$2 -> 14.2072 | L207: 0 | M207: =J207*(1-$E$5-$E$7)*(1-$E$9)*(1+$E$11) -> 12.04 | N207: 0 | O207: =ROUND((M207*$B$2),2) -> 14.21 | P207: 0
... 3412 more rows
